fUSD/lending_fUSD_20250826
["ID","MTS","AMOUNT","RATE_DAILY","PERIOD"]
[381514298,1756241542867,-1810.044483,0.000247,7]
[381514299,1756241542879,-1325.450031,0.000247,7]
[381514300,1756241542890,-151.0,0.000247,7]
[381514301,1756241542900,-450.355517,0.000247,7]
[381514302,1756241542909,-151.0,0.000247,7]
[381514303,1756241542919,-13.26898671,0.000248,7]
[381514304,1756241542959,-1174.63668773,0.000248,7]
[381514305,1756241542970,-1947.58883956,0.000248,7]
[381514306,1756241542980,-450.355517,0.000248,7]
[381514307,1756241542989,-450.355517,0.000248,7]
[381514308,1756241542999,-3135.494514,0.000248,7]
[381514309,1756241543008,-3135.494514,0.000248,7]
[381514310,1756241543018,-151.0,0.000248,7]
[381514311,1756241543888,-450.355517,0.000248,7]
[381514312,1756241543909,-151.0,0.000248,7]
[381514313,1756241543937,-151.0,0.000248,7]
[381514314,1756241543967,-450.355517,0.000248,7]
[381514315,1756241543990,-450.355517,0.000249,7]
[381514316,1756241544009,-3135.494514,0.000249,7]
[381514317,1756241544031,-3135.494514,0.000249,7]
[381514318,1756241544052,-450.355517,0.000249,7]
[381514319,1756241544068,-450.355517,0.000249,7]
[381514320,1756241544077,-3135.494514,0.000249,7]
[381514321,1756241544087,-3135.494517,0.000249,7]
[381514322,1756241544097,-490.0,0.00027397,5]
[381514323,1756241544107,-483.94106348,0.00027397,5]
[381514324,1756241544116,-976.09,0.00027397,5]
[381514325,1756241544126,-400.0,0.00027397,5]
[381514326,1756241544135,-524.36,0.00027397,5]
[381514327,1756241544145,-490.0,0.00027397,5]
[381514328,1756241544155,-400.0,0.00027397,2]
[381514329,1756241544165,-400.0,0.00027671,5]
[381514330,1756241544175,-976.09,0.00027671,5]
[381514331,1756241544184,-524.36,0.00027671,5]
[381514332,1756241544193,-174.69,0.00027671,2]
[381514333,1756241544204,-400.0,0.00027945,5]
[381514334,1756241544214,-524.36,0.00027945,5]
[381514335,1756241544223,-976.09,0.00027945,5]
[381514336,1756241544233,-556.33,0.00028219,5]
[381514337,1756241544242,-400.0,0.00028219,5]
[381514338,1756241544252,-524.36,0.00028219,5]
[381514339,1756241544263,-976.09,0.00028219,5]
[381514340,1756241544272,-221910.35110051,0.00028493,2]
[381514341,1756241544284,-1281.22997561,0.00028493,2]
[381514342,1756241544296,-3077.26167631,0.00028493,2]
[381514343,1756241544384,-151.0,0.000249,7]
[381514344,1756241544394,-132.25,0.00028493,2]
[381514345,1756241544405,-1891.170765,0.00028493,2]
[381514346,1756241544440,-709.14141201,0.00028493,2]
[381514347,1756241544451,-1350.0,0.00028493,2]
[381514348,1756241544477,-450.355517,0.000249,7]
[381514349,1756241544486,-778.344483,0.00028493,2]
[381514350,1756241544497,-275.18040592,0.00028493,2]
[381514351,1756241545267,-151.0,0.00018836,2]
[381514352,1756241545277,-151.0,0.000247,7]
[381514353,1756241545286,-450.355517,0.000247,7]
[381514354,1756241545295,-151.0,0.000248,7]
[381514355,1756241545304,-151.0,0.000248,7]
[381514356,1756241545313,-450.355517,0.000248,7]
[381514357,1756241545322,-450.355517,0.000248,7]
[381514358,1756241545331,-151.0,0.000249,7]
[381514359,1756241545341,-450.355517,0.000249,7]
[381514360,1756241545351,-1173.0,0.00025874,2]
[381514361,1756241545360,-504.86596241,0.00027397,2]
[381514362,1756241545371,-66.61418823,0.00027397,2]
[381514363,1756241545381,-692.51,0.00027397,5]
[381514364,1756241545390,-490.0,0.00027397,5]
[381514365,1756241545399,-692.51,0.00027671,5]
[381514366,1756241545408,-692.51,0.00027945,5]
[381514367,1756241545417,-692.51,0.00028219,5]
[381514368,1756241545427,-2010.34556177,0.00028493,2]
[381514369,1756241545439,-20291.82217103,0.00028493,2]
[381514370,1756241545453,-11274.0,0.00028493,2]
[381514371,1756241545464,-4800.0,0.00028493,2]
[381514372,1756241545475,-1208.0999999,0.00028493,2]
[381514373,1756241545569,-608.21731146,0.00028493,2]
[381514374,1756241545587,-3512.80595253,0.00028493,2]
[381514375,1756241545598,-266944.40058013,0.00028493,2]
[381514376,1756241545608,-178815.34036467,0.00028493,2]
[381514377,1756241545619,-56326.6,0.00028493,2]
[381514378,1756241545635,-450.355517,0.000249,7]
[381514379,1756241545644,-148.272803,0.00028493,2]
[381514388,1756241906695,217.51,0.00013699,2]
[381514389,1756241907248,150.47,0.00025788,120]
[381514394,1756242125456,1500.0,0.00024697,120]
[381514460,1756242631908,-270.2010978,0.00014618,2]
[381514461,1756242631918,-150.0,0.00014666,2]
[381514462,1756242631927,-500.0,0.00014714,2]
[381514463,1756242631936,-150.0,0.00014811,2]
[381514464,1756242631945,-150.0,0.00014821,2]
[381514465,1756242631955,-354.78721094,0.00014903,2]
[381514466,1756242631964,-500.0,0.00014964,2]
[381514467,1756242631973,-250.0,0.00015,2]
[381514468,1756242631982,-1085.0,0.00015388,2]
[381514469,1756242631995,-300.0,0.00016079,2]
[381514470,1756242632005,-421.01169126,0.0001608,3]
[381514471,1756242632016,-578.98830874,0.0001608,3]
[381514472,1756242632025,-150.0,0.0001608,2]
[381514473,1756242632035,-250.0,0.0001608,2]
[381514474,1756242632044,-1000.0,0.0001608,3]
[381514475,1756242632054,-500.0,0.0001608,2]
[381514476,1756242632063,-150.0,0.0001608,2]
[381514477,1756242632073,-1085.0,0.00016198,2]
[381514478,1756242632083,-300.0,0.00017,2]
[381514479,1756242632093,-1085.0,0.0001705,2]
[381514480,1756242632104,-420.0,0.00017578,2]
[381514481,1756242632113,-1085.0,0.00017947,2]
[381514482,1756242632122,-354.78721094,0.00018076,2]
[381514483,1756242632131,-151.0,0.00018324,2]
[381514484,1756242632140,-554.0,0.00018879,2]
[381514485,1756242632150,-734.80052189,0.00018879,2]
[381514486,1756242632159,-1085.0,0.00018892,2]
[381514487,1756242632169,-256.20028911,0.00019178,2]
[381514488,1756242632179,-222.0174909,0.000192,2]
[381514489,1756242632188,-587.0,0.00019218,2]
[381514490,1756242632198,-222.7,0.00019387,2]
[381514491,1756242632206,-156.9,0.00019863,2]
[381514492,1756242632215,-625.40086024,0.00019886,2]
[381514493,1756242632247,-459.59913976,0.00019886,2]
[381514494,1756242632256,-250.0,0.0001998,2]
[381514495,1756242632265,-156.31,0.00019989,2]
[381514496,1756242632275,-5696.1,0.00019999,2]
[381514497,1756242632284,-2673.63,0.00020039,2]
[381514498,1756242632294,-149.15898483,0.00020124,2]
[381514499,1756242632305,-50.84101517,0.00020124,2]
[381514500,1756242632314,-217.51,0.00020187,2]
[381514502,1756242632323,-851.38650047,0.00020435,2]
[381514506,1756242632395,-1141.26349953,0.00020435,2]
[381514508,1756242632404,-160.0,0.00020435,7]
[381514510,1756242632413,-244.52,0.00020572,2]
[381514512,1756242632423,-175.3,0.00020647,2]
[381514513,1756242632432,-150.0,0.00020805,2]
[381514514,1756242632441,-194.81097716,0.00020933,2]
[381514515,1756242632516,-890.18902284,0.00020933,2]
[381514516,1756242632526,-355.2876922,0.00020955,2]
[381514517,1756242632535,-823.0,0.0002101,2]
[381514518,1756242632544,-14996.51,0.00021066,2]
[381514519,1756242632553,-2434.74389024,0.00021128,2]
[381514520,1756242632562,-257.91778498,0.00021128,2]
[381514521,1756242632571,-2524.82941417,0.00021183,2]
[381514522,1756242632580,-2618.2481025,0.00021238,2]
[381514523,1756242632590,-354.78721094,0.00021248,2]
[381514524,1756242632601,-2715.12328229,0.00021293,2]
[381514525,1756242632610,-2815.58284374,0.00021348,2]
[381514526,1756242632620,-1000.0,0.00021357,2]
[381514527,1756242632629,-10872.55,0.00021357,2]
[381514528,1756242632639,-200.0,0.00021357,2]
[381514529,1756242632648,-13326.8,0.00021357,2]
[381514530,1756242632657,-294.28,0.00021357,2]
[381514531,1756242632667,-150.0,0.00021357,2]
[381514532,1756242632676,-500.0,0.00021357,2]
[381514533,1756242632685,-1000.0,0.00021357,2]
[381514534,1756242632694,-2919.75940895,0.00021403,2]
[381514535,1756242632704,-3027.79050709,0.00021458,2]
[381514536,1756242632713,-3139.81875585,0.00021513,2]
[381514537,1756242632728,-3255.99204981,0.00021568,2]
[381514538,1756242632738,-3376.46375566,0.00021623,2]
[381514539,1756242632748,-3501.39291462,0.00021678,2]
[381514540,1756242632758,-3630.94445246,0.00021733,2]
[381514541,1756242632768,-3765.2893972,0.00021788,2]
[381514542,1756242633200,-5000.0,0.00021918,2]
[381514543,1756242633211,-166.86,0.00021998,2]
[381514544,1756242633225,-1085.0,0.00022035,2]
[381514545,1756242633235,-2751.0,0.00022088,2]
[381514546,1756242633245,-150.47,0.00022104,2]
[381514547,1756242633255,-151.0,0.00022119,2]
[381514548,1756242633264,-160.0,0.00022119,2]
[381514549,1756242633274,-151.0,0.00022119,2]
[381514550,1756242633284,-600.0,0.00022119,2]
[381514551,1756242633294,-300.0,0.00022119,2]
[381514552,1756242633303,-300.0,0.00022119,2]
[381514553,1756242633313,-300.0,0.00022119,2]
[381514554,1756242633324,-300.0,0.00022119,2]
[381514555,1756242633345,-207.4,0.00022119,2]
[381514556,1756242633358,-183.0,0.00022119,2]
[381514557,1756242633368,-500.0,0.00022119,2]
[381514558,1756242633378,-670.58624095,0.00022119,2]
[381514559,1756242633387,-322.6107,0.00022119,2]
[381514560,1756242633397,-2857.61,0.00022132,2]
[381514561,1756242633407,-500.0,0.00022174,2]
[381514562,1756242633416,-200.0,0.00022212,2]
[381514563,1756242633426,-500.0,0.00022229,2]
[381514564,1756242633435,-500.0,0.00022284,2]
[381514565,1756242633445,-500.0,0.00022339,2]
[381514566,1756242633455,-500.0,0.00022394,2]
[381514567,1756242633467,-294.28,0.00022425,2]
[381514568,1756242633476,-500.0,0.00022449,2]
[381514569,1756242633486,-267.46074303,0.00022497,2]
[381514570,1756242633495,-500.0,0.00022504,2]
[381514571,1756242633505,-500.0,0.00022559,2]
[381514572,1756242633514,-9999.99,0.00022562,2]
[381514573,1756242633524,-1170.97,0.00022562,2]
[381514574,1756242633534,-87827.91,0.00022562,2]
[381514575,1756242633543,-500.0,0.00022614,2]
[381514576,1756242633553,-600.0,0.00022667,2]
[381514577,1756242633563,-553.0,0.000228,2]
[381514578,1756242633572,-1852.42,0.00022845,2]
[381514579,1756242633582,-1085.0,0.00023195,2]
[381514580,1756242633591,-600.0,0.00023215,2]
[381514581,1756242633601,-170.41110312,0.00023268,2]
[381514582,1756242633611,-156.31,0.00023321,2]
[381514583,1756242633620,-500.0,0.00023367,2]
[381514584,1756242633631,-331.42262779,0.00023367,2]
[381514585,1756242633640,-1000.0,0.00023462,2]
[381514586,1756242633651,-2500.0,0.00023462,2]
[381514587,1756242633660,-9523.927,0.00023462,2]
[381514588,1756242633670,-1000.0,0.00023462,2]
[381514589,1756242633679,-111324.7272,0.00023462,2]
[381514590,1756242633689,-160.0,0.00023484,2]
[381514591,1756242633701,-212.18043798,0.00023485,2]
[381514592,1756242633710,-409.68272476,0.00023485,2]
[381514593,1756242633721,-160.0,0.00023485,2]
[381514594,1756242633730,-334.5472959,0.00023488,2]
[381514595,1756242633740,-294.28,0.00023493,2]
[381514596,1756242633750,-163.44097042,0.000235,2]
[381514597,1756242633759,-10550.15471792,0.00023516,2]
[381514598,1756242633769,-212.18043798,0.00023562,7]
[381514599,1756242633780,-409.68272476,0.00023562,7]
[381514600,1756242633789,-1311.87,0.000236,2]
[381514601,1756242633799,-600.0,0.00023763,2]
[381514602,1756242633809,-500.0,0.0002385,2]
[381514603,1756242633818,-277.35679052,0.00023866,2]
[381514604,1756242633828,-500.0,0.000239,2]
[381514605,1756242633838,-542.0,0.0002398,2]
[381514606,1756242633849,-160.0,0.00024,7]
[381514607,1756242633859,-160.0,0.00024,7]
[381514608,1756242633869,-1000.0,0.00024027,2]
[381514609,1756242633879,-170.41110312,0.00024129,2]
[381514610,1756242633888,-844.63891918,0.00024243,2]
[381514611,1756242633898,-152.61,0.00024288,2]
[381514612,1756242633907,-600.0,0.00024311,2]
[381514613,1756242633917,-1085.0,0.00024354,2]
[381514614,1756242633927,-163.44097035,0.00024356,2]
[381514615,1756242633936,-294.28,0.00024561,2]
[381514616,1756242633946,-412.1775,0.00024657,2]
[381514617,1756242633955,-830.0,0.00024657,2]
[381514618,1756242633964,-1000.0,0.00024658,2]
[381514619,1756242633974,-666.0,0.00024697,3]
[381514620,1756242633984,-5000.0,0.00024697,2]
[381514621,1756242633997,-8227.99,0.00024697,2]
[381514622,1756242634008,-1507.62,0.00024723,2]
[381514623,1756242634017,-70594.5085861,0.000248,2]
[381514624,1756242634027,-346.92554585,0.00024857,2]
[381514625,1756242634037,-695.39793187,0.00024858,2]
[381514626,1756242634046,-600.0,0.00024859,2]
[381514627,1756242634056,-150.63,0.000249,2]
[381514628,1756242634067,-18208.5245656,0.000249,2]
[381514629,1756242634078,-170.41110312,0.00024989,2]
[381514630,1756242634088,-531.0,0.0002517,2]
[381514631,1756242634098,-163.44097035,0.00025211,2]
[381514632,1756242634108,-287.61899177,0.00025235,2]
[381514633,1756242634118,-150.43643989,0.00025373,4]
[381514634,1756242634128,-600.0,0.00025407,2]
[381514635,1756242634138,-35297.2542931,0.0002552,2]
[381514636,1756242634148,-5888.0,0.0002553,2]
[381514637,1756242634158,-2602.82,0.00025543,2]
[381514638,1756242634179,-1085.0,0.00025572,2]
[381514639,1756242634189,-18208.52456536,0.00025597,3]
[381514640,1756242634199,-212.18043798,0.000256,3]
[381514641,1756242634209,-160.0,0.000256,3]
[381514642,1756242634219,-160.0,0.000256,3]
[381514643,1756242634228,-409.68272476,0.000256,3]
[381514644,1756242634238,-844.63891918,0.000256,3]
[381514645,1756242634248,-294.28,0.00025629,2]
[381514646,1756242634258,-166.86,0.00025629,2]
[381514647,1756242634268,-509.0,0.00025767,2]
[381514648,1756242634279,-170.41110312,0.0002585,2]
[381514649,1756242634288,-186.485,0.00025908,2]
[381514650,1756242634298,-250.0,0.00025908,2]
[381514651,1756242634308,-207.194,0.00025908,2]
[381514652,1756242634318,-205.169,0.00025908,2]
[381514653,1756242634327,-154.0,0.00025908,2]
[381514654,1756242634338,-600.0,0.00025955,2]
[381514655,1756242634348,-1057.85,0.00026,2]
[381514656,1756242634359,-1379.0,0.00026042,2]
[381514657,1756242634368,-163.44097035,0.00026067,2]
[381514658,1756242634378,-156.9,0.0002609,2]
[381514659,1756242634388,-210.22,0.00026157,2]
[381514660,1756242634398,-35297.2542931,0.00026208,2]
[381514661,1756242634408,-359.76179104,0.00026226,2]
[381514662,1756242634418,-35297.2542931,0.00026257,2]
[381514663,1756242634427,-27119.8796008,0.00026257,2]
[381514664,1756242634438,-3374.0,0.00026267,2]
[381514665,1756242634447,-926.0,0.00026267,2]
[381514666,1756242634457,-2031.0,0.00026267,2]
[381514667,1756242634467,-1256.0,0.00026267,2]
[381514668,1756242634477,-566.0,0.00026267,2]
[381514669,1756242634487,-1298.0,0.00026267,2]
[381514670,1756242634497,-599.0,0.00026267,2]
[381514671,1756242634507,-1658.0,0.00026267,2]
[381514672,1756242634517,-1079.116,0.00026267,2]
[381514673,1756242634528,-895.0,0.00026267,2]
[381514674,1756242634538,-718.0,0.00026267,2]
[381514675,1756242634549,-6146.0,0.00026267,2]
[381514676,1756242634559,-4155.0,0.00026267,2]
[381514677,1756242634569,-21104.0,0.00026267,2]
[381514678,1756242634579,-18208.52456536,0.00026293,5]
[381514679,1756242634590,-520.0,0.0002635,2]
[381514680,1756242634601,-1379.0,0.00026362,2]
[381514681,1756242634612,-150.0,0.0002642,2]
[381514682,1756242634622,-277.84,0.00026501,2]
[381514683,1756242634633,-1379.0,0.00026501,2]
[381514684,1756242634643,-600.0,0.00026503,2]
[381514685,1756242634654,-1379.0,0.0002659,2]
[381514686,1756242634664,-298.26089446,0.00026604,2]
[381514687,1756242634674,-156.31,0.00026652,2]
[381514688,1756242634684,-217.51,0.00026676,2]
[381514689,1756242634695,-1000.0,0.00026697,2]
[381514690,1756242634706,-170.41110312,0.0002671,2]
[381514691,1756242634716,-1000.0,0.000268,2]
[381514692,1756242634726,-824.355,0.00026849,6]
[381514693,1756242634736,-1085.0,0.00026851,2]
[381514694,1756242634746,-178.225,0.0002688,14]
[381514695,1756242634757,-3013.09,0.000269,14]
[381514696,1756242634767,-163.44097035,0.00026922,2]
[381514697,1756242634777,-35297.2542931,0.0002697,2]
[381514698,1756242634787,-27119.8796008,0.0002697,2]
[381514699,1756242634802,-18208.52456536,0.0002699,6]
[381514700,1756242634813,-306.0,0.00027,7]
[381514701,1756242634825,-565.0,0.00027,7]
[381514702,1756242634835,-600.0,0.00027051,2]
[381514703,1756242634845,-1379.0,0.00027051,7]
[381514704,1756242634855,-1379.0,0.00027257,2]
[381514705,1756242634864,-1379.0,0.00027277,2]
[381514706,1756242634874,-27119.8796008,0.00027296,2]
[381514707,1756242634884,-1082.72941392,0.00027297,4]
[381514708,1756242634894,-1082.72941392,0.00027297,4]
[381514709,1756242634903,-1057.85,0.000273,2]
[381514710,1756242634913,-105891.762879,0.00027367,2]
[381514711,1756242634923,-108479.518403,0.00027367,2]
[381514712,1756242634932,-152.9,0.00027367,2]
[381514713,1756242634942,-152.9,0.00027367,2]
[381514714,1756242634952,-500.0,0.00027373,2]
[381514715,1756242634962,-500.0,0.00027373,2]
[381514716,1756242634972,-235.4229631,0.00027373,2]
[381514717,1756242634982,-500.0,0.00027373,2]
[381514718,1756242634992,-500.0,0.00027373,2]
[381514719,1756242635005,-500.0,0.00027373,2]
[381514720,1756242635015,-500.0,0.00027373,2]
[381514721,1756242635025,-500.0,0.00027373,2]
[381514722,1756242635036,-500.3571981,0.00027373,2]
[381514723,1756242635046,-151.18306465,0.00027373,2]
[381514724,1756242635056,-500.0,0.00027373,2]
[381514725,1756242635066,-500.0,0.00027373,2]
[381514726,1756242635076,-23804.62812356,0.00027373,2]
[381514727,1756242635087,-35297.2542931,0.00027376,2]
[381514728,1756242635097,-141189.017172,0.00027377,2]
[381514729,1756242635108,-162719.277605,0.00027377,2]
[381514730,1756242635118,-152.9,0.00027377,2]
[381514731,1756242635128,-152.9,0.00027377,2]
[381514732,1756242635138,-58281.18241015,0.00027387,2]
[381514734,1756242637766,-1000.0,0.00023268,2]
[381514735,1756242637776,-105.10624714,0.00024697,2]
[381514736,1756242637824,-420.33375286,0.00024697,2]
[381514737,1756242637833,-525.44,0.00025791,7]
[381514738,1756242637842,-525.44,0.00026884,7]
[381514739,1756242637852,-3225.7742072,0.00027387,2]
[381514740,1756242637864,-2515.538259,0.00027387,2]
[381514741,1756242637875,-23022.75426652,0.00027387,2]
[381514742,1756242637937,-18846.51373613,0.00027387,2]
[381514743,1756242637947,-155471.7943532,0.00027387,2]
[381514744,1756242637992,-1277.91532512,0.00027387,2]
[381514745,1756242638005,-4805.64362,0.00027387,2]
[381514746,1756242638017,-109643.44270968,0.00027387,2]
[381514747,1756242638026,-152.9,0.00027387,2]
[381514748,1756242638037,-152.9,0.00027387,2]
[381514749,1756242638047,-900.0,0.00027396,10]
[381514750,1756242638057,-900.0,0.00027396,10]
[381514752,1756242638066,-900.0,0.00027396,10]
[381514754,1756242638076,-900.0,0.00027396,10]
[381514756,1756242638086,-900.0,0.00027396,10]
[381514758,1756242638095,-900.0,0.00027396,10]
[381514759,1756242638105,-900.0,0.00027396,10]
[381514760,1756242638114,-900.0,0.00027396,10]
[381514761,1756242638123,-150.06,0.00027397,2]
[381514762,1756242638133,-53651.8079944,0.00027397,2]
[381514763,1756242638142,-493.00855477,0.00027397,5]
[381514764,1756242638151,-400.0,0.00027397,5]
[381514765,1756242638161,-490.0,0.00027397,5]
[381514767,1756242638170,-400.0,0.00027397,5]
[381514769,1756242638179,-1000.0,0.00027397,5]
[381514792,1756242638395,-730.4,0.00027397,5]
[381514794,1756242638405,-415.43870381,0.00027397,5]
[381514796,1756242638414,-400.0,0.00027397,5]
[381514798,1756242638423,-400.0,0.00027397,5]
[381514800,1756242638433,-760.05,0.00027397,5]
[381514802,1756242638442,-454.07,0.00027397,5]
[381514804,1756242638451,-723.24,0.00027397,5]
[381514806,1756242638461,-400.0,0.00027397,5]
[381514808,1756242638470,-400.0,0.00027397,5]
[381514810,1756242638479,-400.0,0.00027397,5]
[381514812,1756242638488,-619.46,0.00027397,5]
[381514814,1756242638497,-728.17,0.00027397,5]
[381514816,1756242638506,-400.0,0.00027397,5]
[381514818,1756242638516,-400.0,0.00027397,5]
[381514820,1756242638525,-199.67142742,0.00027397,5]
[381514822,1756242638534,-400.0,0.00027397,5]
[381514824,1756242638543,-400.0,0.00027397,5]
[381514826,1756242638552,-400.0,0.00027397,5]
[381514828,1756242638562,-799.01,0.00027397,5]
[381514830,1756242638571,-667.16,0.00027397,5]
[381514832,1756242638580,-400.0,0.00027397,5]
[381514834,1756242638589,-1089.48,0.00027397,5]
[381514836,1756242638598,-605.33,0.00027397,5]
[381514838,1756242638608,-500.0,0.00027397,5]
[381514840,1756242638617,-500.0,0.00027397,5]
[381514842,1756242638627,-500.0,0.00027397,5]
[381514844,1756242638637,-500.0,0.00027397,5]
[381514846,1756242638646,-218.60034745,0.00027397,5]
[381514848,1756242638655,-299.93164787,0.00027397,5]
[381514850,1756242638663,-400.0,0.00027397,5]
[381514852,1756242638673,-400.0,0.00027397,5]
[381514854,1756242638682,-400.0,0.00027397,5]
[381514856,1756242638692,-400.67506048,0.00027397,5]
[381514858,1756242638702,-400.0,0.00027397,5]
[381514860,1756242638711,-400.0,0.00027397,5]
[381514862,1756242638720,-1321.78,0.00027397,5]
[381514864,1756242638730,-400.0,0.00027397,5]
[381514866,1756242638740,-490.0,0.00027397,5]
[381514868,1756242638750,-843.33,0.00027397,5]
[381514870,1756242638760,-1026.64,0.00027397,5]
[381514872,1756242638770,-401.56,0.00027397,5]
[381514874,1756242638780,-728.63,0.00027397,5]
[381514876,1756242638789,-400.0,0.00027397,5]
[381514878,1756242638798,-400.0,0.00027397,5]
[381514880,1756242638808,-616.73,0.00027397,5]
[381514882,1756242638819,-400.0,0.00027397,5]
[381514884,1756242638828,-400.0,0.00027397,5]
[381514886,1756242638838,-541.32,0.00027397,5]
[381514888,1756242638847,-401.11,0.00027397,5]
[381514890,1756242638857,-400.42268369,0.00027397,5]
[381514892,1756242638866,-400.0,0.00027397,5]
[381514894,1756242638876,-571.08,0.00027397,5]
[381514896,1756242638886,-769.57,0.00027397,5]
[381514898,1756242638896,-526.99,0.00027397,5]
[381514900,1756242638905,-710.26,0.00027397,5]
[381514902,1756242638914,-400.0,0.00027397,5]
[381514904,1756242638924,-405.4611386,0.00027397,5]
[381514906,1756242638934,-544.46,0.00027397,5]
[381514908,1756242638943,-749.27,0.00027397,5]
[381514910,1756242638953,-611.79,0.00027397,5]
[381514911,1756242638963,-400.0,0.00027397,5]
[381514914,1756242638974,-650.45,0.00027397,5]
[381514916,1756242638983,-1005.05,0.00027397,5]
[381514917,1756242638993,-426.99,0.00027397,5]
[381514919,1756242639006,-400.0,0.00027397,5]
[381514921,1756242639015,-1116.49,0.00027397,5]
[381514923,1756242639025,-400.0,0.00027397,5]
[381514925,1756242639035,-544.97,0.00027397,5]
[381514927,1756242639045,-400.0,0.00027397,5]
[381514929,1756242639055,-400.0,0.00027397,5]
[381514931,1756242639064,-400.0,0.00027397,5]
[381514933,1756242639074,-400.0,0.00027397,5]
[381514935,1756242639083,-400.0,0.00027397,5]
[381514937,1756242639093,-400.0,0.00027397,5]
[381514939,1756242639103,-400.0,0.00027397,5]
[381514941,1756242639112,-649.86,0.00027397,5]
[381514943,1756242639121,-400.0,0.00027397,5]
[381514945,1756242639131,-461.45,0.00027397,5]
[381514947,1756242639140,-611.91,0.00027397,5]
[381514950,1756242639152,-805.27,0.00027397,5]
[381514952,1756242639161,-400.58780638,0.00027397,5]
[381514954,1756242639171,-500.0,0.00027397,5]
[381514956,1756242639180,-400.0,0.00027397,5]
[381514958,1756242639189,-447.07,0.00027397,5]
[381514960,1756242639199,-853.57,0.00027397,5]
[381514962,1756242639208,-746.13,0.00027397,5]
[381514964,1756242639217,-719.41,0.00027397,5]
[381514966,1756242639227,-589.8,0.00027397,5]
[381514968,1756242639237,-400.0,0.00027397,5]
[381514970,1756242639248,-400.0,0.00027397,5]
[381514972,1756242639258,-400.0,0.00027397,5]
[381514974,1756242639267,-485.55,0.00027397,5]
[381514976,1756242639276,-400.0,0.00027397,5]
[381514978,1756242639286,-489.7,0.00027397,5]
[381514980,1756242639297,-400.0,0.00027397,5]
[381514982,1756242639306,-737.08,0.00027397,5]
[381514984,1756242639316,-400.0,0.00027397,5]
[381514986,1756242639326,-278.26813504,0.00027397,5]
[381514988,1756242639336,-427.71,0.00027397,5]
[381514990,1756242639346,-400.0,0.00027397,5]
[381514992,1756242639355,-922.06,0.00027397,5]
[381514994,1756242639365,-444.85,0.00027397,5]
[381514996,1756242639374,-400.0,0.00027397,5]
[381514998,1756242639384,-903.56,0.00027397,5]
[381515000,1756242639393,-447.46,0.00027397,5]
[381515002,1756242639403,-410.63,0.00027397,5]
[381515004,1756242639412,-454.41,0.00027397,5]
[381515006,1756242639421,-400.0,0.00027397,5]
[381515008,1756242639432,-400.0,0.00027397,5]
[381515010,1756242639441,-400.0,0.00027397,5]
[381515012,1756242639450,-400.0,0.00027397,5]
[381515014,1756242639459,-692.68,0.00027397,5]
[381515016,1756242639468,-400.0,0.00027397,5]
[381515018,1756242639477,-1069.0,0.00027397,5]
[381515020,1756242639488,-400.0,0.00027397,5]
[381515022,1756242639497,-502.82,0.00027397,5]
[381515024,1756242639506,-1046.94,0.00027397,5]
[381515026,1756242639515,-400.0,0.00027397,5]
[381515027,1756242639525,-1283.1,0.00027397,5]